[Event "Anderssen Festival 2019"]
[Site "Wroclaw"]
[Date "2019.08.06"]
[Round "2.11"]
[White "Glotz, Uwe"]
[Black "Snihur, Piotr"]
[Result "0-1"]
[ECO "B44"]
[WhiteElo "1843"]
[BlackElo "2256"]
[Annotator "NA"]
[PlyCount "48"]
[EventDate "2019.08.05"]
[EventType "swiss"]
[EventCountry "POL"]
[SourceTitle "playchess.com"]
[Source "ChessBase"]
[SourceQuality "1"]
[TimeControl "40/5400+30:900+30"]

1. e4 {[%emt 0:00:00]} c5 {[%emt 0:00:01]} 2. Nf3 {[%emt 0:00:16]} e6 {[%emt 0:00:37]} 3. d4 {[%emt 0:03:58]} cxd4 {[%emt 0:00:11]} 4. Nxd4 {[%emt 0:00:07]} Nc6 {[%emt 0:00:15]} 5. Nxc6 {[%emt 0:03:29]} bxc6 {[%emt 0:00:16]} 6. a3 {[%emt 0:04:00]} Nf6 {[%emt 0:01:03]} 7. Nc3 {[%emt 0:01:22]} d5 {[%emt 0:00:44]} 8. exd5 {[%emt 0:03:35]} cxd5 {[%emt 0:00:12]} 9. Bg5 {[%emt 0:04:19]} Be7 {[%emt 0:01:15]} 10. Bb5+ {[%emt 0:01:22]} Bd7 {[%emt 0:00:43]} 11. Bxd7+ {[%emt 0:00:21]} Qxd7 {[%emt 0:00:26]} 12. O-O {[%emt 0:04:04]} O-O {[%emt 0:01:04]} 13. Qd4 {[%emt 0:04:15]} Rfc8 {[%emt 0:03:57]} 14. Rfc1 {[%emt 0:07:34]} Rc4 {[%emt 0:02:52]} 15. Qd3 {[%emt 0:03:05]} Rac8 {[%emt 0:01:40]} 16. Ne2 {[%emt 0:05:40]} Qc7 {[%emt 0:08:39]} 17. c3 {[%emt 0:03:52]} Ng4 {[%emt 0:08:13]} 18. Bxe7 {[%emt 0:09:29]} Qxh2+ {[%emt 0:03:26]} 19. Kf1 {[%emt 0:00:07]} Qh1+ {[%emt 0:00:32]} 20. Ng1 {[%emt 0:00:06]} Re4 {[%emt 0:00:51]} 21. Bd6 {[%emt 0:05:35]} e5 {[%emt 0:01:02]} 22. f3 {[%emt 0:01:23]} Ne3+ {[%emt 0:00:29]} 23. Ke1 {[%emt 0:02:20]} Qxg1+ {[%emt 0:01:02]} 24. Kd2 {[%emt 0:02:10]} Qf2+ {[%emt 0:00:57]} 0-1

[Event "Anderssen Festival 2019"]
[Site "Wroclaw"]
[Date "2019.08.06"]
[Round "2.12"]
[White "Wieczorek, Zbigniew"]
[Black "Wang, Ruiming"]
[Result "1/2-1/2"]
[ECO "A05"]
[WhiteElo "2235"]
[BlackElo "1853"]
[Annotator "NA"]
[PlyCount "41"]
[EventDate "2019.08.05"]
[EventType "swiss"]
[EventCountry "POL"]
[SourceTitle "playchess.com"]
[Source "ChessBase"]
[SourceQuality "1"]
[TimeControl "40/5400+30:900+30"]

1. Nf3 {[%emt 0:00:01]} Nf6 {[%emt 0:00:00]} 2. g3 {[%emt 0:00:09]} g6 {[%emt 0:00:01]} 3. Bg2 {[%emt 0:00:18]} Bg7 {[%emt 0:00:07]} 4. c4 {[%emt 0:00:17]} O-O {[%emt 0:00:10]} 5. Nc3 {[%emt 0:00:06]} d6 {[%emt 0:00:16]} 6. O-O {[%emt 0:00:18]} Nc6 {[%emt 0:00:10]} 7. Rb1 {[%emt 0:00:15]} a6 {[%emt 0:01:54]} 8. d3 {[%emt 0:02:07]} e5 {[%emt 0:04:21]} 9. b4 {[%emt 0:02:16]} Nh5 {[%emt 0:03:15]} 10. a4 {[%emt 0:04:56]} f5 {[%emt 0:02:59]} 11. Nd5 {[%emt 0:03:12]} f4 {[%emt 0:04:07]} 12. b5 {[%emt 0:01:33]} Ne7 {[%emt 0:05:01]} 13. Nxe7+ {[%emt 0:03:40]} Qxe7 {[%emt 0:01:25]} 14. Nd2 {[%emt 0:02:02]} axb5 {[%emt 0:06:34]} 15. axb5 {[%emt 0:00:16]} g5 {[%emt 0:01:13]} 16. Qb3 {[%emt 0:07:15]} Kh8 {[%emt 0:01:32]} 17. Ba3 {[%emt 0:03:38]} g4 {[%emt 0:05:22]} 18. Bd5 {[%emt 0:06:08]} Nf6 {[%emt 0:03:07]} 19. Ne4 {[%emt 0:00:09]} Nxd5 {[%emt 0:05:17]} 20. cxd5 {[%emt 0:00:05]} b6 {[%emt 0:03:33]} 21. Rbc1 {[%emt 0:01:08]} 1/2-1/2

[Event "Anderssen Festival 2019"]
[Site "Wroclaw"]
[Date "2019.08.06"]
[Round "2.13"]
[White "Krawiec, Grzegorz"]
[Black "Mitchell, Martin"]
[Result "1/2-1/2"]
[ECO "B09"]
[WhiteElo "1816"]
[BlackElo "2218"]
[Annotator "NA"]
[PlyCount "92"]
[EventDate "2019.08.05"]
[EventType "swiss"]
[EventCountry "POL"]
[SourceTitle "playchess.com"]
[Source "ChessBase"]
[SourceQuality "1"]
[TimeControl "40/5400+30:900+30"]

1. e4 {[%emt 0:00:00]} d6 {[%emt 0:00:00]} 2. d4 {[%emt 0:00:29]} Nf6 {[%emt 0:00:17]} 3. Nc3 {[%emt 0:00:07]} g6 {[%emt 0:00:21]} 4. f4 {[%emt 0:00:37]} Bg7 {[%emt 0:00:15]} 5. a3 {[%emt 0:00:13]} O-O {[%emt 0:08:24]} 6. Nf3 {[%emt 0:01:13]} Na6 {[%emt 0:06:02]} 7. Be3 {[%emt 0:05:06]} b6 {[%emt 0:06:50]} 8. b4 {[%emt 0:12:24]} c5 {[%emt 0:04:13]} 9. Rb1 {[%emt 0:19:20]} Ng4 {[%emt 0:07:34]} 10. Bg1 {[%emt 0:03:10]} cxd4 {[%emt 0:01:06]} 11. Bxd4 {[%emt 0:00:20]} e5 {[%emt 0:00:41]} 12. fxe5 {[%emt 0:01:15]} dxe5 {[%emt 0:02:02]} 13. Bf2 {[%emt 0:00:08]} Bb7 {[%emt 0:06:09]} 14. Bd3 {[%emt 0:04:21]} f5 {[%emt 0:04:46]} 15. O-O {[%emt 0:03:29]} Rc8 {[%emt 0:05:38]} 16. Nd5 {[%emt 0:09:51]} fxe4 {[%emt 0:10:30]} 17. Bxe4 {[%emt 0:00:14]} Nxf2 {[%emt 0:03:54]} 18. Rxf2 {[%emt 0:00:39]} Rc4 {[%emt 0:02:43]} 19. Nf6+ {[%emt 0:01:09]} Qxf6 {[%emt 0:01:18]} 20. Bxb7 {[%emt 0:00:13]} Nc7 {[%emt 0:00:41]} 21. Bd5+ {[%emt 0:06:52]} Nxd5 {[%emt 0:00:06]} 22. Qxd5+ {[%emt 0:00:00]} Qf7 {[%emt 0:00:08]} 23. Rd1 {[%emt 0:00:45]} Qxd5 {[%emt 0:03:22]} 24. Rxd5 {[%emt 0:00:05]} e4 {[%emt 0:01:40]} 25. Ng5 {[%emt 0:00:23]} Rxf2 {[%emt 0:00:30]} 26. Kxf2 {[%emt 0:00:04]} Rxc2+ {[%emt 0:01:10]} 27. Ke3 {[%emt 0:00:01]} Bh6 {[%emt 0:11:32]} 28. Kxe4 {[%emt 0:00:59]} Kf8 {[%emt 0:00:30]} 29. Nxh7+ {[%emt 0:05:39]} Ke7 {[%emt 0:00:25]} 30. Ng5 {[%emt 0:00:04]} Rxg2 {[%emt 0:01:45]} 31. Nf3 {[%emt 0:01:05]} Re2+ {[%emt 0:00:28]} 32. Kd4 {[%emt 0:00:38]} Bg7+ {[%emt 0:01:21]} 33. Kc4 {[%emt 0:11:25]} Re3 {[%emt 0:00:15]} 34. Nd4 {[%emt 0:02:24]} Bxd4 {[%emt 0:00:36]} 35. Rxd4 {[%emt 0:01:06]} Rxa3 {[%emt 0:00:09]} 36. Kb5 {[%emt 0:01:46]} Rh3 {[%emt 0:01:32]} 37. Kc6 {[%emt 0:04:27]} Ke6 {[%emt 0:02:52]} 38. Rd6+ {[%emt 0:00:42]} Kf5 {[%emt 0:00:22]} 39. Rd7 {[%emt 0:00:08]} a5 {[%emt 0:02:58]} 40. b5 {[%emt 0:00:00]} Rxh2 {[%emt 0:00:00]} 41. Kxb6 {[%emt 0:00:11]} a4 {[%emt 0:02:31]} 42. Ra7 {[%emt 0:04:24]} Ra2 {[%emt 0:01:10]} 43. Kc7 {[%emt 0:03:49]} a3 {[%emt 0:02:23]} 44. b6 {[%emt 0:00:09]} Rc2+ {[%emt 0:00:38]} 45. Kd7 {[%emt 0:07:37]} Rb2 {[%emt 0:00:35]} 46. Kc7 {[%emt 0:00:03]} Rc2+ 1/2-1/2

[Event "Anderssen Festival 2019"]
[Site "Wroclaw"]
[Date "2019.08.06"]
[Round "2.14"]
[White "Socha, Kamil"]
[Black "Kareva, Natalia"]
[Result "0-1"]
[ECO "A40"]
[WhiteElo "1741"]
[BlackElo "2135"]
[Annotator "NA"]
[PlyCount "134"]
[EventDate "2019.08.05"]
[EventType "swiss"]
[EventCountry "POL"]
[SourceTitle "playchess.com"]
[Source "ChessBase"]
[SourceQuality "1"]
[TimeControl "40/5400+30:900+30"]

1. d4 e6 2. Nf3 f5 3. g3 b6 4. Bg2 Bb7 5. O-O Nf6 6. b3 Be7 7. Bb2 O-O 8. c4 Qe8 9. Nc3 Ne4 10. Qc2 Nxc3 11. Bxc3 d6 12. c5 dxc5 13. dxc5 Bxc5 14. b4 Bd6 15. Nd4 Bxg2 16. Kxg2 Nc6 17. Rac1 Nxd4 18. Bxd4 Qb5 19. Bc3 Rf7 20. Kg1 Rc8 21. Rfd1 f4 22. Qe4 Re8 23. Rd3 Qa4 24. g4 f3 25. Rxf3 Rxf3 26. Qxf3 Qxa2 27. Ra1 Qc4 28. Rxa7 Rf8 29. Ra8 Bxb4 30. Bxb4 Qxb4 31. Rxf8+ Qxf8 32. Qc6 Qe7 33. h3 Kf7 34. Qf3+ Ke8 35. Qc6+ Qd7 36. Qa8+ Kf7 37. Qf3+ Ke7 38. Qe4 Qd1+ 39. Kh2 Qd6+ 40. Kg1 g6 41. Qc4 Kd7 42. Qc3 c5 43. e3 Kc6 44. Kg2 e5 45. Qa1 Qd5+ 46. Kg3 c4 47. Qa8+ Kc5 48. Qa3+ Kb5 49. Qb2+ Kc6 50. Qa1 e4 51. Qa8+ Kc5 52. Qa3+ Kb5 53. Qb2+ Kc6 54. Kg2 b5 55. Qa3 Kb6 56. Qb2 Qd6 57. Qc2 Qe5 58. Qd2 c3 59. Qd8+ Qc7 60. Qd4+ Ka5 61. Qd1 b4 62. Qd5+ Ka4 63. Qa2+ Kb5 64. Qd5+ Qc5 65. Qb7+ Ka4 66. Qd7+ Ka3 67. Qd1 b3 0-1

[Event "Anderssen Festival 2019"]
[Site "Wroclaw"]
[Date "2019.08.06"]
[Round "2.15"]
[White "Zgadzaj, Rafal"]
[Black "Zerebiec, Maurycy"]
[Result "1-0"]
[ECO "A02"]
[WhiteElo "2133"]
[BlackElo "1708"]
[Annotator "NA"]
[PlyCount "85"]
[EventDate "2019.08.05"]
[EventType "swiss"]
[EventCountry "POL"]
[SourceTitle "playchess.com"]
[Source "ChessBase"]
[SourceQuality "1"]
[TimeControl "40/5400+30:900+30"]

1. f4 {[%emt 0:02:01]} e6 {[%emt 0:00:39]} 2. Nf3 {[%emt 0:00:15]} d5 {[%emt 0:00:05]} 3. g3 {[%emt 0:00:34]} g6 {[%emt 0:00:26]} 4. Bg2 {[%emt 0:00:08]} Bg7 {[%emt 0:00:06]} 5. c3 {[%emt 0:00:43]} f5 {[%emt 0:00:39]} 6. O-O {[%emt 0:00:20]} Nf6 {[%emt 0:00:09]} 7. d3 {[%emt 0:01:59]} b6 {[%emt 0:00:28]} 8. a4 {[%emt 0:01:35]} a5 {[%emt 0:01:19]} 9. Na3 {[%emt 0:03:06]} O-O {[%emt 0:00:30]} 10. Qc2 {[%emt 0:01:24]} Bb7 {[%emt 0:00:10]} 11. Bd2 {[%emt 0:00:43]} c5 {[%emt 0:00:33]} 12. Nb5 {[%emt 0:13:28]} Na6 {[%emt 0:03:26]} 13. Rae1 {[%emt 0:00:53]} h6 {[%emt 0:00:38]} 14. Bc1 {[%emt 0:02:19]} Nc7 {[%emt 0:01:24]} 15. Ne5 {[%emt 0:04:16]} Kh7 {[%emt 0:02:21]} 16. Na3 {[%emt 0:09:49]} Nce8 {[%emt 0:04:35]} 17. e4 {[%emt 0:02:13]} dxe4 {[%emt 0:05:38]} 18. dxe4 {[%emt 0:01:36]} Nxe4 {[%emt 0:02:34]} 19. Rd1 {[%emt 0:02:34]} Qc8 {[%emt 0:12:48]} 20. Nd7 {[%emt 0:05:58]} Qc6 {[%emt 0:03:40]} 21. Nxf8+ {[%emt 0:00:13]} Bxf8 {[%emt 0:00:05]} 22. Nc4 {[%emt 0:01:39]} N8f6 {[%emt 0:01:02]} 23. Qb3 {[%emt 0:09:25]} Ba6 {[%emt 0:05:08]} 24. Rfe1 {[%emt 0:11:57]} b5 {[%emt 0:03:34]} 25. axb5 {[%emt 0:03:15]} Bxb5 {[%emt 0:00:12]} 26. Ne5 {[%emt 0:01:37]} c4 {[%emt 0:06:59]} 27. Nxc6 {[%emt 0:01:16]} cxb3 {[%emt 0:00:08]} 28. Nd4 {[%emt 0:01:35]} Bc5 {[%emt 0:00:06]} 29. Bf1 {[%emt 0:02:50]} Bxf1 {[%emt 0:11:02]} 30. Kxf1 {[%emt 0:00:10]} Bxd4 {[%emt 0:00:04]} 31. Rxd4 {[%emt 0:01:17]} a4 {[%emt 0:00:19]} 32. Rb4 {[%emt 0:02:38]} Nd5 {[%emt 0:01:29]} 33. Rb7+ {[%emt 0:00:18]} Kg8 {[%emt 0:00:07]} 34. c4 {[%emt 0:01:58]} Ndf6 {[%emt 0:01:30]} 35. Rd1 {[%emt 0:04:34]} Kf8 {[%emt 0:00:44]} 36. Be3 {[%emt 0:02:56]} Ng4 {[%emt 0:06:55]} 37. Bg1 {[%emt 0:00:30]} Ngf6 {[%emt 0:00:22]} 38. Bd4 {[%emt 0:01:21]} Ng4 {[%emt 0:00:35]} 39. h3 {[%emt 0:02:16]} Ngf6 {[%emt 0:02:41]} 40. Kg2 {[%emt 0:00:00]} Nh5 {[%emt 0:00:00]} 41. Be5 {[%emt 0:02:44]} Kg8 {[%emt 0:03:17]} 42. Rdd7 {[%emt 0:01:31]} Nc5 {[%emt 0:00:15]} 43. Rh7 {[%emt 0:02:13]} 1-0

[Event "Anderssen Festival 2019"]
[Site "Wroclaw"]
[Date "2019.08.06"]
[Round "2.16"]
[White "Skiba, Krzysztof"]
[Black "Gorny, Michael"]
[Result "1-0"]
[ECO "A45"]
[WhiteElo "1722"]
[BlackElo "2067"]
[Annotator "NA"]
[PlyCount "125"]
[EventDate "2019.08.05"]
[EventType "swiss"]
[EventCountry "POL"]
[SourceTitle "playchess.com"]
[Source "ChessBase"]
[SourceQuality "1"]
[TimeControl "40/5400+30:900+30"]

1. d4 {[%emt 0:00:00]} Nf6 {[%emt 0:11:55]} 2. e3 {[%emt 0:00:00]} g6 {[%emt 0:01:30]} 3. Bd3 {[%emt 0:00:00]} Bg7 {[%emt 0:01:55]} 4. f4 {[%emt 0:00:00]} c5 {[%emt 0:01:59]} 5. c3 {[%emt 0:00:01]} d6 {[%emt 0:01:45]} 6. Nf3 {[%emt 0:00:06]} O-O {[%emt 0:02:20]} 7. O-O {[%emt 0:00:05]} Nc6 {[%emt 0:03:44]} 8. Nbd2 {[%emt 0:12:34]} cxd4 {[%emt 0:04:13]} 9. exd4 {[%emt 0:00:09]} e5 {[%emt 0:00:23]} 10. fxe5 {[%emt 0:08:15]} dxe5 {[%emt 0:00:35]} 11. Nxe5 {[%emt 0:01:58]} Nxe5 {[%emt 0:02:59]} 12. dxe5 {[%emt 0:00:05]} Ng4 {[%emt 0:00:52]} 13. Ne4 {[%emt 0:04:19]} Nxe5 {[%emt 0:12:58]} 14. Bc2 {[%emt 0:00:13]} Qb6+ {[%emt 0:07:01]} 15. Kh1 {[%emt 0:00:33]} Be6 {[%emt 0:00:41]} 16. b3 {[%emt 0:07:32]} Rad8 {[%emt 0:01:35]} 17. Qe1 {[%emt 0:01:16]} Bf5 {[%emt 0:06:40]} 18. Ba3 {[%emt 0:11:01]} Rfe8 {[%emt 0:01:00]} 19. Qh4 {[%emt 0:01:10]} h6 {[%emt 0:07:28]} 20. Be7 {[%emt 0:07:33]} Rxe7 {[%emt 0:13:07]} 21. Qxe7 {[%emt 0:01:18]} Ng4 {[%emt 0:01:36]} 22. Rae1 {[%emt 0:05:32]} Bxe4 {[%emt 0:02:12]} 23. Qxf7+ {[%emt 0:00:51]} Kh7 {[%emt 0:02:37]} 24. Bxe4 {[%emt 0:05:30]} Rf8 {[%emt 0:00:25]} 25. Qxg6+ {[%emt 0:00:52]} Qxg6 {[%emt 0:00:18]} 26. Bxg6+ {[%emt 0:00:02]} Kxg6 {[%emt 0:00:12]} 27. Rxf8 {[%emt 0:00:04]} Bxf8 {[%emt 0:00:10]} 28. h3 {[%emt 0:03:23]} Nf6 {[%emt 0:00:24]} 29. g4 {[%emt 0:03:17]} a5 {[%emt 0:00:47]} 30. Re6 {[%emt 0:04:24]} Bc5 {[%emt 0:01:35]} 31. b4 {[%emt 0:02:50]} axb4 {[%emt 0:02:08]} 32. cxb4 {[%emt 0:00:01]} Bxb4 {[%emt 0:01:28]} 33. Rb6 {[%emt 0:00:02]} Bd2 {[%emt 0:01:59]} 34. Rxb7 {[%emt 0:00:03]} Ne4 {[%emt 0:00:40]} 35. Kg2 {[%emt 0:01:21]} Kf6 {[%emt 0:00:49]} 36. Kf3 {[%emt 0:04:56]} Nd6 {[%emt 0:01:32]} 37. Rb6 {[%emt 0:01:33]} Ke5 {[%emt 0:00:21]} 38. Ke2 {[%emt 0:01:27]} Bg5 {[%emt 0:01:00]} 39. Kf3 {[%emt 0:00:45]} Kd5 {[%emt 0:00:38]} 40. Rb8 {[%emt 0:00:00]} Kc6 {[%emt 0:00:00]} 41. Rh8 {[%emt 0:02:08]} Nb5 {[%emt 0:10:52]} 42. h4 {[%emt 0:00:14]} Bd2 {[%emt 0:00:18]} 43. Ke2 {[%emt 0:01:10]} Bf4 {[%emt 0:00:22]} 44. Kd3 {[%emt 0:00:14]} Kb6 {[%emt 0:00:46]} 45. Rg8 {[%emt 0:01:47]} Kc6 {[%emt 0:04:33]} 46. g5 {[%emt 0:01:23]} hxg5 {[%emt 0:00:28]} 47. hxg5 {[%emt 0:00:02]} Nc7 {[%emt 0:03:29]} 48. g6 {[%emt 0:00:29]} Be5 {[%emt 0:00:24]} 49. Ke4 {[%emt 0:01:11]} Bb2 {[%emt 0:00:25]} 50. g7 {[%emt 0:01:49]} Bf6 {[%emt 0:01:56]} 51. Kf5 {[%emt 0:00:14]} Bc3 {[%emt 0:00:30]} 52. Kg6 {[%emt 0:00:01]} Bd4 {[%emt 0:00:49]} 53. Rc8 {[%emt 0:00:23]} Bxg7 {[%emt 0:00:17]} 54. Kxg7 {[%emt 0:00:04]} Kb7 {[%emt 0:00:03]} 55. Rh8 {[%emt 0:00:24]} Kb6 {[%emt 0:00:09]} 56. Rb8+ {[%emt 0:00:15]} Ka5 {[%emt 0:00:13]} 57. Rc8 {[%emt 0:00:47]} Nb5 {[%emt 0:00:33]} 58. Kf6 {[%emt 0:00:53]} Kb4 {[%emt 0:00:11]} 59. Ke5 {[%emt 0:02:58]} Nc3 {[%emt 0:00:11]} 60. Ra8 {[%emt 0:00:04]} Nb5 {[%emt 0:00:17]} 61. Rb8 {[%emt 0:02:38]} Ka4 {[%emt 0:00:17]} 62. Kd5 {[%emt 0:01:28]} Kb4 {[%emt 0:00:14]} 63. Kc6 {[%emt 0:00:10]} 1-0

[Event "Anderssen Festival 2019"]
[Site "Wroclaw"]
[Date "2019.08.06"]
[Round "2.17"]
[White "Malecki, Rafal"]
[Black "Seredyn, Dominik"]
[Result "1/2-1/2"]
[ECO "A06"]
[WhiteElo "2063"]
[BlackElo "1737"]
[Annotator "NA"]
[PlyCount "100"]
[EventDate "2019.08.05"]
[EventType "swiss"]
[EventCountry "POL"]
[SourceTitle "playchess.com"]
[Source "ChessBase"]
[SourceQuality "1"]
[TimeControl "40/5400+30:900+30"]

1. Nf3 d5 2. g3 Nf6 3. Bg2 e6 4. O-O Be7 5. d3 b6 6. Nbd2 Bb7 7. e4 dxe4 8. Ng5 O-O 9. Ndxe4 Nxe4 10. Nxe4 Qc8 11. Re1 Nd7 12. b3 f5 13. Ng5 Bxg2 14. Kxg2 Bxg5 15. Bxg5 e5 16. Qf3 Qe8 17. Qc6 Rc8 18. a4 a5 19. Re2 Qh5 20. Rae1 f4 21. f3 e4 22. gxf4 Qxf3+ 23. Kg1 Nf6 24. Rg2 Kh8 25. Rg3 Qh5 26. Bxf6 Rxf6 27. Qxe4 Rcf8 28. Qe5 Qf7 29. Re4 Rf5 30. Qd4 Rd5 31. Qc3 Rc5 32. Qb2 Rf5 33. c4 c5 34. Rg4 h5 35. Rg3 Kh7 36. Qe2 Kh6 37. Re6+ Rf6 38. Re7 Qg8 39. Rg5 g6 40. Ree5 Rxf4 41. Qe3 Rf1+ 42. Kg2 R8f2+ 43. Qxf2 Rxf2+ 44. Kxf2 Qf8+ 45. Kg3 Qd6 46. h4 Qxd3+ 47. Kh2 Qxb3 48. Re6 Qc2+ 49. Rg2 Qf5 50. Rgxg6+ Qxg6 1/2-1/2

[Event "Anderssen Festival 2019"]
[Site "Wroclaw"]
[Date "2019.08.06"]
[Round "2.18"]
[White "Pawicka, Magdalena"]
[Black "Verwoert, Jef"]
[Result "0-1"]
[ECO "B36"]
[WhiteElo "1700"]
[BlackElo "2034"]
[Annotator "NA"]
[PlyCount "74"]
[EventDate "2019.08.05"]
[EventType "swiss"]
[EventCountry "POL"]
[SourceTitle "playchess.com"]
[Source "ChessBase"]
[SourceQuality "1"]
[TimeControl "40/5400+30:900+30"]

1. e4 {[%emt 0:00:00]} c5 {[%emt 0:02:39]} 2. Nf3 {[%emt 0:00:00]} g6 {[%emt 0:00:09]} 3. d4 {[%emt 0:00:00]} cxd4 {[%emt 0:00:05]} 4. Nxd4 {[%emt 0:00:00]} Nc6 {[%emt 0:00:05]} 5. c4 {[%emt 0:00:58]} Nf6 {[%emt 0:00:22]} 6. Nc3 {[%emt 0:00:48]} d6 {[%emt 0:00:23]} 7. Be2 {[%emt 0:02:44]} Nxd4 {[%emt 0:00:31]} 8. Qxd4 {[%emt 0:00:43]} Bg7 {[%emt 0:00:10]} 9. Be3 {[%emt 0:04:21]} O-O {[%emt 0:00:59]} 10. Qd2 {[%emt 0:04:42]} a5 {[%emt 0:03:45]} 11. a4 {[%emt 0:03:14]} Be6 {[%emt 0:02:31]} 12. f3 {[%emt 0:05:17]} Rc8 {[%emt 0:09:45]} 13. Nd5 {[%emt 0:01:06]} Nd7 {[%emt 0:01:58]} 14. O-O {[%emt 0:13:57]} Nc5 {[%emt 0:05:24]} 15. Ra3 {[%emt 0:02:40]} Bxd5 {[%emt 0:21:28]} 16. cxd5 {[%emt 0:01:13]} Qb6 {[%emt 0:06:16]} 17. Bd4 {[%emt 0:13:03]} Nxe4 {[%emt 0:03:52]} 18. Bxb6 {[%emt 0:00:12]} Nxd2 {[%emt 0:00:08]} 19. Rd1 {[%emt 0:00:28]} Nc4 {[%emt 0:01:23]} 20. Bxc4 {[%emt 0:01:34]} Rxc4 {[%emt 0:00:11]} 21. b3 {[%emt 0:01:05]} Rc2 {[%emt 0:00:29]} 22. Bxa5 {[%emt 0:01:37]} Bb2 {[%emt 0:00:46]} 23. Ra2 {[%emt 0:02:14]} Bd4+ {[%emt 0:00:26]} 24. Rxd4 {[%emt 0:00:09]} Rxa2 {[%emt 0:00:05]} 25. Rc4 {[%emt 0:01:24]} b5 {[%emt 0:00:18]} 26. Rb4 {[%emt 0:04:03]} Rc8 {[%emt 0:04:55]} 27. h3 {[%emt 0:00:25]} Rcc2 {[%emt 0:03:51]} 28. Rxb5 {[%emt 0:01:00]} Rxg2+ {[%emt 0:00:11]} 29. Kf1 {[%emt 0:00:37]} Rgf2+ {[%emt 0:00:42]} 30. Ke1 {[%emt 0:00:41]} Rh2 {[%emt 0:00:23]} 31. Rb8+ {[%emt 0:01:05]} Kg7 {[%emt 0:00:06]} 32. Bc3+ {[%emt 0:00:32]} f6 {[%emt 0:00:46]} 33. Kd1 {[%emt 0:00:53]} Rh1+ {[%emt 0:00:35]} 34. Be1 {[%emt 0:00:07]} Ra1+ {[%emt 0:00:12]} 35. Kd2 {[%emt 0:00:11]} Rhxe1 {[%emt 0:00:16]} 36. a5 {[%emt 0:00:11]} Red1+ {[%emt 0:01:40]} 37. Kc2 {[%emt 0:00:35]} Rxd5 {[%emt 0:00:25]} 0-1

[Event "Anderssen Festival 2019"]
[Site "Wroclaw"]
[Date "2019.08.06"]
[Round "2.19"]
[White "Smal, Tobiasz"]
[Black "Dytman, Radoslaw"]
[Result "0-1"]
[ECO "A10"]
[WhiteElo "2027"]
[BlackElo "1745"]
[Annotator "NA"]
[PlyCount "64"]
[EventDate "2019.08.05"]
[EventType "swiss"]
[EventCountry "POL"]
[SourceTitle "playchess.com"]
[Source "ChessBase"]
[SourceQuality "1"]
[TimeControl "40/5400+30:900+30"]

1. c4 {[%emt 0:00:38]} d6 {[%emt 0:00:00]} 2. Nc3 {[%emt 0:00:16]} e5 {[%emt 0:00:09]} 3. g3 {[%emt 0:00:25]} g6 {[%emt 0:00:44]} 4. Bg2 {[%emt 0:00:06]} Bg7 {[%emt 0:00:27]} 5. e3 {[%emt 0:02:14]} f5 {[%emt 0:00:46]} 6. d4 {[%emt 0:00:58]} e4 {[%emt 0:01:08]} 7. Nge2 {[%emt 0:01:25]} Be6 {[%emt 0:05:34]} 8. O-O {[%emt 0:03:31]} Nf6 {[%emt 0:00:52]} 9. b3 {[%emt 0:17:22]} O-O {[%emt 0:09:36]} 10. d5 {[%emt 0:03:39]} Bf7 {[%emt 0:00:23]} 11. Bb2 {[%emt 0:00:07]} Nbd7 {[%emt 0:02:29]} 12. Nd4 {[%emt 0:17:22]} Qe7 {[%emt 0:08:43]} 13. Nce2 {[%emt 0:02:31]} Nh5 {[%emt 0:15:29]} 14. b4 {[%emt 0:07:39]} Ne5 {[%emt 0:04:25]} 15. Qb3 {[%emt 0:00:30]} c6 {[%emt 0:10:48]} 16. Rfd1 {[%emt 0:02:15]} Nd3 {[%emt 0:11:19]} 17. dxc6 {[%emt 0:03:33]} b5 {[%emt 0:00:18]} 18. Nc1 {[%emt 0:05:58]} Bxc4 {[%emt 0:02:43]} 19. Qa3 {[%emt 0:02:56]} Nxb2 {[%emt 0:04:07]} 20. Qxb2 {[%emt 0:00:13]} g5 {[%emt 0:02:19]} 21. Bf1 {[%emt 0:07:40]} Qf7 {[%emt 0:11:12]} 22. Bxc4 {[%emt 0:01:15]} bxc4 {[%emt 0:00:12]} 23. Nce2 {[%emt 0:11:11]} f4 {[%emt 0:04:10]} 24. exf4 {[%emt 0:00:11]} gxf4 {[%emt 0:00:25]} 25. g4 {[%emt 0:03:02]} f3 {[%emt 0:01:35]} 26. Nc3 {[%emt 0:03:12]} Qg6 {[%emt 0:01:04]} 27. Kh1 {[%emt 0:00:16]} Nf4 {[%emt 0:00:46]} 28. Qd2 {[%emt 0:01:36]} Be5 {[%emt 0:01:00]} 29. Rg1 {[%emt 0:00:17]} Nh3 {[%emt 0:00:59]} 30. Nd5 {[%emt 0:00:47]} Qf7 {[%emt 0:00:41]} 31. Nf5 {[%emt 0:00:06]} Kh8 {[%emt 0:00:32]} 32. Qh6 {[%emt 0:01:17]} Nxf2# 0-1

[Event "Anderssen Festival 2019"]
[Site "Wroclaw"]
[Date "2019.08.06"]
[Round "2.20"]
[White "Kurtycz, Maciej"]
[Black "Czyz, Andrzej"]
[Result "1/2-1/2"]
[ECO "B01"]
[WhiteElo "1689"]
[BlackElo "2000"]
[Annotator "NA"]
[PlyCount "128"]
[EventDate "2019.08.05"]
[EventType "swiss"]
[EventCountry "POL"]
[SourceTitle "playchess.com"]
[Source "ChessBase"]
[SourceQuality "1"]
[TimeControl "40/5400+30:900+30"]

1. e4 d5 2. exd5 Nf6 3. Bb5+ Bd7 4. Be2 Nxd5 5. c4 Nf4 6. g3 Nxe2 7. Nxe2 Bc6 8. Rg1 Qd3 9. Qb3 Qxb3 10. axb3 Na6 11. d4 Nb4 12. Kf1 e6 13. Nbc3 a6 14. Be3 O-O-O 15. Rd1 Be7 16. f4 Rd7 17. Kf2 f6 18. Rd2 b6 19. Rgd1 g5 20. f5 exf5 21. d5 Bb7 22. Nd4 f4 23. gxf4 gxf4 24. Bxf4 Bc5 25. Ne4 Bxd4+ 26. Rxd4 Rf8 27. Rg1 f5 28. Ng5 Rg8 29. Ne6 Rg6 30. h4 Rxg1 31. Kxg1 c6 32. d6 c5 33. Rd2 Be4 34. Nf8 Rg7+ 35. Kh2 Bc6 36. Bg5 Bd7 37. Be7 Nc6 38. Nxd7 Kxd7 39. Rd5 Nd4 40. Bf6 Rg4 41. Kh3 Re4 42. Bxd4 cxd4 43. b4 d3 44. c5 bxc5 45. bxc5 Rc4 46. Rxd3 Rxc5 47. Ra3 Rc6 48. Ra5 Rxd6 49. Rxf5 Kc6 50. Kg4 Rd2 51. Rf6+ Kb5 52. Rf7 h6 53. Kh5 Kb6 54. Rf6+ Kb7 55. Kxh6 Rxb2 56. h5 a5 57. Kg7 a4 58. Rf4 a3 59. Ra4 Rg2+ 60. Kf7 a2 61. h6 Rh2 62. Rxa2 Rxa2 63. h7 Rh2 64. Kg7 Rxh7+ 1/2-1/2